fUST/lending_fUST_20250916
["ID","MTS","AMOUNT","RATE_DAILY","PERIOD"]
[385743677,1758001837763,-500.0,0.00020599,2]
[385743678,1758001837773,-500.0,0.00020599,2]
[385743680,1758001837782,-500.0,0.00020599,2]
[385743682,1758001837792,-500.0,0.00020599,2]
[385743683,1758001837802,-500.0,0.00020599,2]
[385743684,1758001837811,-500.0,0.00020599,2]
[385743685,1758001837821,-500.0,0.00020599,2]
[385743686,1758001837830,-500.0,0.00020599,2]
[385743687,1758001837839,-500.0,0.00020599,2]
[385743688,1758001837848,-500.0,0.00020599,2]
[385743689,1758001837858,-500.0,0.00020599,2]
[385743690,1758001837868,-500.0,0.00020599,2]
[385743691,1758001837877,-224.17506094,0.00020599,2]
[385743692,1758001837886,-644.92280315,0.00020599,2]
[385743693,1758001837895,-500.0,0.00020599,2]
[385743695,1758001837904,-500.0,0.00020599,2]
[385743697,1758001837913,-500.0,0.00020599,2]
[385743699,1758001837922,-500.0,0.00020599,2]
[385743701,1758001837932,-500.0,0.00020599,2]
[385743702,1758001837942,-245962.72811126,0.000206,2]
[385743703,1758001837951,-643.98420324,0.000206,2]
[385743704,1758001837960,-161.16784892,0.00020909,2]
[385743705,1758001837974,-300.0,0.00021009,20]
[385743706,1758001837988,-300.0,0.00021009,20]
[385743707,1758001837997,-300.0,0.00021009,20]
[385743708,1758001838006,-300.0,0.00021009,20]
[385743709,1758001838015,-300.0,0.0002101,20]
[385743710,1758001838025,-300.0,0.0002101,20]
[385743711,1758001838034,-300.0,0.0002101,20]
[385743712,1758001838044,-300.0,0.0002101,20]
[385743713,1758001838053,-300.0,0.0002101,20]
[385743714,1758001838062,-300.0,0.0002101,20]
[385743715,1758001838071,-300.0,0.0002101,20]
[385743716,1758001838080,-300.0,0.0002101,20]
[385743717,1758001838089,-348.39232631,0.00021286,2]
[385743718,1758001838098,-7238.47276332,0.00021817,2]
[385743719,1758001838107,-250.0,0.00021863,2]
[385743720,1758001838214,-480.0,0.00021917,2]
[385743721,1758001838224,-325.96086701,0.00021917,2]
[385743722,1758001838233,-480.0,0.00021917,2]
[385743723,1758001838242,-465.09751842,0.00021917,2]
[385743724,1758001838251,-436.54770758,0.00021917,2]
[385743725,1758001838260,-168.58702569,0.00021917,2]
[385743726,1758001838269,-480.0,0.00021917,2]
[385743727,1758001838278,-480.0,0.00021917,2]
[385743728,1758001838287,-480.0,0.00021917,2]
[385743729,1758001838297,-480.0,0.00021917,2]
[385743730,1758001838306,-480.0,0.00021917,2]
[385743731,1758001838316,-599.49096495,0.00021917,2]
[385743732,1758001838325,-480.0,0.00021917,2]
[385743733,1758001838334,-481.37075762,0.00021917,2]
[385743734,1758001838344,-480.0,0.00021917,2]
[385743735,1758001838353,-480.0,0.00021917,2]
[385743736,1758001838362,-480.0,0.00021917,2]
[385743737,1758001838371,-480.0,0.00021917,2]
[385743738,1758001838381,-162.25740872,0.00021917,2]
[385743739,1758001838390,-480.0,0.00021917,2]
[385743740,1758001838399,-468.24552515,0.00021917,2]
[385743741,1758001838408,-480.0,0.00021917,2]
[385743742,1758001838417,-480.0,0.00021917,2]
[385743743,1758001838426,-480.0,0.00021917,2]
[385743744,1758001838435,-480.0,0.00021917,2]
[385743745,1758001838445,-480.0,0.00021917,2]
[385743746,1758001838454,-536.21158563,0.00021917,2]
[385743747,1758001838463,-480.0,0.00021917,2]
[385743748,1758001838472,-492.56,0.00021917,2]
[385743749,1758001838481,-480.0,0.00021917,2]
[385743750,1758001838491,-472.93322358,0.00021917,2]
[385743751,1758001838500,-480.0,0.00021917,2]
[385743752,1758001838509,-209.24715129,0.00021917,2]
[385743753,1758001838518,-480.0,0.00021917,2]
[385743754,1758001838527,-480.0,0.00021917,2]
[385743755,1758001838536,-480.0,0.00021917,2]
[385743756,1758001838546,-287.26032261,0.00021917,2]
[385743757,1758001838556,-468.86698764,0.00021917,2]
[385743758,1758001838565,-563.84058516,0.00021917,2]
[385743759,1758001838575,-480.0,0.00021917,2]
[385743760,1758001838586,-480.0,0.00021917,2]
[385743761,1758001838596,-480.0,0.00021917,2]
[385743762,1758001838605,-480.0,0.00021917,2]
[385743763,1758001838614,-476.82146224,0.00021917,2]
[385743764,1758001838625,-480.0,0.00021917,2]
[385743765,1758001838634,-480.0,0.00021917,2]
[385743766,1758001838644,-480.0,0.00021917,2]
[385743767,1758001838655,-480.0,0.00021917,2]
[385743768,1758001838665,-480.0,0.00021917,2]
[385743769,1758001838674,-480.0,0.00021917,2]
[385743770,1758001838685,-470.78824991,0.00021917,2]
[385743771,1758001838695,-467.79648607,0.00021917,2]
[385743772,1758001838704,-441.77254458,0.00021917,2]
[385743773,1758001838713,-480.0,0.00021917,2]
[385743774,1758001838722,-480.0,0.00021917,2]
[385743775,1758001838732,-480.0,0.00021917,2]
[385743776,1758001838742,-480.0,0.00021917,2]
[385743777,1758001838751,-480.0,0.00021917,2]
[385743778,1758001838760,-480.0,0.00021917,2]
[385743779,1758001838770,-480.0,0.00021917,2]
[385743780,1758001838779,-480.0,0.00021917,2]
[385743781,1758001838788,-969.47,0.00021917,2]
[385743782,1758001838798,-869.01,0.00021917,2]
[385743783,1758001838809,-480.0,0.00021917,2]
[385743784,1758001838819,-480.0,0.00021917,2]
[385743785,1758001838828,-303.33122266,0.00021917,2]
[385743786,1758001838837,-480.0,0.00021917,2]
[385743787,1758001838846,-742.64,0.00021917,2]
[385743788,1758001838856,-480.0,0.00021917,2]
[385743789,1758001838865,-461.88043554,0.00021917,2]
[385743790,1758001838875,-480.0,0.00021917,2]
[385743791,1758001838885,-480.0,0.00021917,2]
[385743792,1758001838894,-480.0,0.00021917,2]
[385743793,1758001838903,-480.0,0.00021917,2]
[385743794,1758001838912,-480.0,0.00021917,2]
[385743795,1758001838922,-480.0,0.00021917,2]
[385743796,1758001838931,-480.0,0.00021917,2]
[385743797,1758001838940,-480.0,0.00021917,2]
[385743798,1758001838950,-468.05828872,0.00021917,2]
[385743799,1758001838959,-480.0,0.00021917,2]
[385743800,1758001838968,-480.0,0.00021917,2]
[385743801,1758001838978,-4357.14,0.00021917,2]
[385743802,1758001838987,-480.0,0.00021917,2]
[385743803,1758001838996,-610.16169356,0.00021917,2]
[385743804,1758001839006,-480.0,0.00021917,2]
[385743805,1758001839015,-480.0,0.00021917,2]
[385743806,1758001839025,-480.0,0.00021917,2]
[385743807,1758001839034,-480.0,0.00021917,2]
[385743808,1758001839044,-480.0,0.00021917,2]
[385743809,1758001839053,-480.0,0.00021917,2]
[385743810,1758001839062,-480.0,0.00021917,2]
[385743811,1758001839072,-480.0,0.00021917,2]
[385743812,1758001839081,-480.0,0.00021917,2]
[385743813,1758001839090,-480.0,0.00021917,2]
[385743814,1758001839099,-480.0,0.00021917,2]
[385743815,1758001839108,-480.0,0.00021917,2]
[385743816,1758001839117,-480.0,0.00021917,2]
[385743817,1758001839126,-467.76891415,0.00021917,2]
[385743818,1758001839135,-464.32865758,0.00021917,2]
[385743819,1758001839144,-480.0,0.00021917,2]
[385743820,1758001839153,-480.0,0.00021917,2]
[385743821,1758001839162,-480.0,0.00021917,2]
[385743823,1758001839172,-357.3174706,0.00021917,2]
[385743824,1758001839181,-480.0,0.00021917,2]
[385743826,1758001839190,-334.15664772,0.00021917,2]
[385743828,1758001839199,-480.0,0.00021917,2]
[385743830,1758001839208,-480.0,0.00021917,2]
[385743831,1758001839218,-334.15543278,0.00021917,2]
[385743832,1758001839227,-480.0,0.00021917,2]
[385743833,1758001839236,-1694.44,0.00021917,2]
[385743834,1758001839245,-480.0,0.00021917,2]
[385743835,1758001839254,-480.0,0.00021917,2]
[385743836,1758001839263,-480.0,0.00021917,2]
[385743837,1758001839272,-480.0,0.00021917,2]
[385743838,1758001839282,-467.52998389,0.00021917,2]
[385743839,1758001839291,-480.0,0.00021917,2]
[385743840,1758001839301,-480.0,0.00021917,2]
[385743841,1758001839310,-480.0,0.00021917,2]
[385743842,1758001839319,-526.81,0.00021917,2]
[385743844,1758001839329,-480.0,0.00021917,2]
[385743845,1758001839338,-480.0,0.00021917,2]
[385743846,1758001839348,-473.32096204,0.00021917,2]
[385743848,1758001839357,-480.0,0.00021917,2]
[385743849,1758001839367,-480.0,0.00021917,2]
[385743850,1758001839376,-480.0,0.00021917,2]
[385743851,1758001839386,-785.88,0.00021917,2]
[385743852,1758001839395,-480.0,0.00021917,2]
[385743853,1758001839404,-480.0,0.00021917,2]
[385743854,1758001839413,-501.43586876,0.00021917,2]
[385743855,1758001839422,-443.33496437,0.00021917,2]
[385743856,1758001839431,-390.69593061,0.00021917,2]
[385743857,1758001839441,-480.0,0.00021917,2]
[385743858,1758001839450,-500.0,0.00021973,2]
[385743859,1758001839459,-500.0,0.00021973,2]
[385743861,1758001839468,-501.52175241,0.00021973,2]
[385743862,1758001839477,-500.0,0.00021973,2]
[385743864,1758001839486,-500.0,0.00021973,2]
[385743866,1758001839496,-500.0,0.00021973,2]
[385743868,1758001839505,-502.34057584,0.00021973,2]
[385743870,1758001839514,-500.0,0.00021973,2]
[385743872,1758001839524,-150.0,0.00021973,2]
[385743874,1758001839533,-500.0,0.00021973,2]
[385743876,1758001839543,-20405.68915621,0.0002199,2]
[385743878,1758001839551,-2206.16,0.00022,7]
[385743880,1758001839562,-20752.27,0.00022,7]
[385743882,1758001839571,-160.0,0.00022,7]
[385743884,1758001839585,-160.0,0.00022015,2]
[385743886,1758001839594,-2200.0,0.00022015,2]
[385743888,1758001839603,-233.29513139,0.00022016,2]
[385743890,1758001839613,-417.15472785,0.00022016,2]
[385743892,1758001839623,-847.61663983,0.0002202,2]
[385743894,1758001839633,-160.0,0.0002202,2]
[385743896,1758001839642,-160.0,0.0002202,2]
[385743898,1758001839652,-160.0,0.0002202,2]
[385743900,1758001839661,-300.0,0.0002211,2]
[385743902,1758001839670,-151.0,0.00022169,2]
[385743904,1758001839680,-151.0,0.00022169,2]
[385743906,1758001839689,-163.0,0.00022169,2]
[385743908,1758001839698,-151.0,0.00022169,2]
[385743910,1758001839707,-163.0,0.00022169,2]
[385743912,1758001839716,-500.0,0.00022173,2]
[385743914,1758001839725,-506.33177552,0.00022173,2]
[385743916,1758001839734,-500.0,0.00022173,2]
[385743918,1758001839744,-500.0,0.00022173,2]
[385743920,1758001839753,-500.0,0.00022173,2]
[385743922,1758001839762,-472.77516837,0.00022191,3]
[385743924,1758001839772,-214.38122862,0.00022191,3]
[385743925,1758001839781,-480.0,0.00022191,3]
[385743926,1758001839790,-480.0,0.00022191,3]
[385743927,1758001839799,-468.24274041,0.00022191,3]
[385743928,1758001839808,-368.58497926,0.00022191,3]
[385743929,1758001839818,-468.15418675,0.00022191,3]
[385743930,1758001839828,-480.0,0.00022191,3]
[385743931,1758001839837,-480.0,0.00022191,3]
[385743932,1758001839847,-480.0,0.00022191,3]
[385743933,1758001839856,-480.0,0.00022191,3]
[385743934,1758001839867,-480.0,0.00022191,3]
[385743935,1758001839877,-247.27819196,0.00022191,3]
[385743936,1758001839887,-176.07166876,0.00022191,3]
[385743937,1758001839896,-243.69315676,0.00022191,3]
[385743938,1758001839906,-480.0,0.00022191,3]
[385743940,1758001839915,-480.0,0.00022191,3]
[385743942,1758001839924,-243.29623334,0.00022191,3]
[385743943,1758001839933,-480.0,0.00022191,3]
[385743944,1758001839942,-480.0,0.00022191,3]
[385743945,1758001839951,-480.0,0.00022191,3]
[385743946,1758001839959,-480.0,0.00022191,3]
[385743947,1758001839968,-171.55262148,0.00022191,3]
[385743948,1758001839977,-510.07586565,0.00022191,3]
[385743949,1758001839987,-480.0,0.00022191,3]
[385743950,1758001839996,-480.0,0.00022191,3]
[385743951,1758001840005,-480.0,0.00022191,3]
[385743952,1758001840014,-480.0,0.00022191,3]
[385743953,1758001840023,-480.0,0.00022191,3]
[385743954,1758001840033,-480.0,0.00022191,3]
[385743955,1758001840042,-480.54225241,0.00022191,3]
[385743956,1758001840052,-480.0,0.00022191,3]
[385743957,1758001840061,-480.0,0.00022191,3]
[385743958,1758001840070,-480.0,0.00022191,3]
[385743959,1758001840080,-480.0,0.00022191,3]
[385743960,1758001840089,-433.34661456,0.00022191,3]
[385743961,1758001840098,-480.0,0.00022191,3]
[385743962,1758001840107,-969.47,0.00022191,3]
[385743963,1758001840117,-869.01,0.00022191,3]
[385743964,1758001840127,-480.0,0.00022191,3]
[385743965,1758001840137,-480.0,0.00022191,3]
[385743966,1758001840146,-480.0,0.00022191,3]
[385743967,1758001840155,-742.64,0.00022191,3]
[385743968,1758001840164,-480.0,0.00022191,3]
[385743969,1758001840173,-480.0,0.00022191,3]
[385743970,1758001840182,-480.0,0.00022191,3]
[385743971,1758001840191,-480.0,0.00022191,3]
[385743972,1758001840200,-480.0,0.00022191,3]
[385743973,1758001840209,-345.27893656,0.00022191,3]
[385743974,1758001840218,-480.0,0.00022191,3]
[385743975,1758001840227,-480.0,0.00022191,3]
[385743976,1758001840236,-480.0,0.00022191,3]
[385743977,1758001840245,-4357.14,0.00022191,3]
[385743978,1758001840254,-480.0,0.00022191,3]
[385743979,1758001840263,-480.0,0.00022191,3]
[385743980,1758001840272,-480.0,0.00022191,3]
[385743981,1758001840281,-480.0,0.00022191,3]
[385743982,1758001840291,-480.0,0.00022191,3]
[385743983,1758001840302,-480.0,0.00022191,3]
[385743984,1758001840311,-480.0,0.00022191,3]
[385743985,1758001840320,-480.0,0.00022191,3]
[385743986,1758001840329,-480.0,0.00022191,3]
[385743987,1758001840338,-346.0357999,0.00022191,3]
[385743988,1758001840347,-480.0,0.00022191,3]
[385743989,1758001840357,-480.0,0.00022191,3]
[385743990,1758001840365,-480.0,0.00022191,3]
[385743991,1758001840375,-480.0,0.00022191,3]
[385743992,1758001840384,-480.0,0.00022191,3]
[385743993,1758001840394,-480.0,0.00022191,3]
[385743994,1758001840403,-480.0,0.00022191,3]
[385743995,1758001840413,-1694.44,0.00022191,3]
[385743996,1758001840426,-480.0,0.00022191,3]
[385743997,1758001840437,-517.37841268,0.00022191,3]
[385743998,1758001840447,-487.99398473,0.00022191,3]
[385743999,1758001840456,-480.0,0.00022191,3]
[385744000,1758001840466,-480.0,0.00022191,3]
[385744001,1758001840475,-480.0,0.00022191,3]
[385744002,1758001840484,-480.0,0.00022191,3]
[385744003,1758001840493,-785.88,0.00022191,3]
[385744004,1758001840502,-480.0,0.00022191,3]
[385744005,1758001840511,-480.0,0.00022191,3]
[385744006,1758001840520,-160.0,0.00022191,3]
[385744007,1758001840528,-480.0,0.00022191,3]
[385744008,1758001840538,-450.0,0.00022247,2]
[385744009,1758001840548,-369.55204424,0.00022384,2]
[385744010,1758001840556,-335.0,0.00022415,2]
[385744011,1758001840566,-303.0,0.00022415,2]
[385744012,1758001840577,-151.0,0.00022443,2]
[385744013,1758001840588,-151.0,0.00022443,2]
[385744014,1758001840597,-151.0,0.00022443,2]
[385744015,1758001840606,-151.0,0.00022443,2]
[385744016,1758001840616,-500.0,0.00022443,2]
[385744017,1758001840710,-151.0,0.00022443,2]
[385744018,1758001840720,-151.0,0.00022443,2]
[385744019,1758001840730,-500.0,0.00022443,2]
[385744020,1758001840739,-151.0,0.00022443,2]
[385744021,1758001840750,-151.0,0.00022443,2]
[385744022,1758001840760,-151.0,0.00022443,2]
[385744023,1758001840769,-500.0,0.00022443,2]
[385744024,1758001840778,-480.0,0.00022465,3]
[385744025,1758001840787,-480.0,0.00022465,3]
[385744026,1758001840797,-480.0,0.00022465,3]
[385744027,1758001840806,-480.0,0.00022465,3]
[385744028,1758001840816,-480.0,0.00022465,3]
[385744029,1758001840825,-480.0,0.00022465,3]
[385744030,1758001840834,-480.0,0.00022465,3]
[385744031,1758001840843,-480.0,0.00022465,3]
[385744032,1758001840852,-330.40217785,0.00022465,3]
[385744033,1758001840861,-247.09,0.00022465,3]
[385744034,1758001840871,-480.0,0.00022465,3]
[385744035,1758001840880,-596.55,0.00022465,3]
[385744036,1758001840889,-513.07,0.00022465,3]
[385744037,1758001840898,-480.0,0.00022465,3]
[385744038,1758001840908,-480.0,0.00022465,3]
[385744039,1758001840917,-405.7,0.00022465,3]
[385744040,1758001840926,-480.0,0.00022465,3]
[385744041,1758001840936,-480.0,0.00022465,3]
[385744042,1758001840945,-969.47,0.00022465,3]
[385744043,1758001840955,-869.01,0.00022465,3]
[385744044,1758001840964,-480.0,0.00022465,3]
[385744045,1758001840973,-480.0,0.00022465,3]
[385744046,1758001840982,-742.64,0.00022465,3]
[385744047,1758001840991,-480.0,0.00022465,3]
[385744048,1758001841000,-480.0,0.00022465,3]
[385744049,1758001841009,-4357.14,0.00022465,3]
[385744050,1758001841018,-480.0,0.00022465,3]
[385744051,1758001841027,-480.0,0.00022465,3]
[385744052,1758001841036,-480.0,0.00022465,3]
[385744053,1758001841046,-480.0,0.00022465,3]
[385744054,1758001841055,-435.63057039,0.00022465,3]
[385744055,1758001841064,-480.0,0.00022465,3]
[385744056,1758001841073,-480.0,0.00022465,3]
[385744057,1758001841082,-480.0,0.00022465,3]
[385744058,1758001841091,-1694.44,0.00022465,3]
[385744059,1758001841100,-480.0,0.00022465,3]
[385744060,1758001841108,-480.0,0.00022465,3]
[385744061,1758001841118,-480.0,0.00022465,3]
[385744062,1758001841127,-480.0,0.00022465,3]
[385744063,1758001841136,-785.88,0.00022465,3]
[385744064,1758001841145,-480.0,0.00022465,3]
[385744065,1758001841154,-480.0,0.00022465,3]
[385744066,1758001841163,-384.31,0.00022465,3]
[385744067,1758001841172,-490.18785629,0.00022521,2]
[385744068,1758001841181,-1000.0,0.00022521,2]
[385744069,1758001841190,-502.05338767,0.00022521,2]
[385744070,1758001841199,-1000.0,0.00022521,2]
[385744071,1758001841208,-203.72204021,0.00022521,2]
[385744072,1758001841217,-1000.0,0.00022521,2]
[385744073,1758001841226,-1680.0,0.00022522,2]
[385744074,1758001841236,-160.0,0.00022627,2]
[385744075,1758001841245,-157.93389343,0.00022717,2]
[385744076,1758001841255,-151.0,0.00022717,2]
[385744077,1758001841264,-151.0,0.00022717,2]
[385744078,1758001841273,-159.61060249,0.00022717,2]
[385744079,1758001841283,-500.0,0.00022717,2]
[385744080,1758001841293,-164.66831296,0.00022717,2]
[385744081,1758001841303,-164.2224735,0.00022717,2]
[385744082,1758001841312,-548.19219168,0.00022717,2]
[385744083,1758001841321,-500.0,0.00022717,2]
[385744084,1758001841330,-1000.0,0.00022721,2]
[385744085,1758001841339,-1000.0,0.00022721,2]
[385744086,1758001841349,-1000.0,0.00022721,2]
[385744087,1758001841358,-1000.0,0.00022721,2]
[385744088,1758001841367,-480.0,0.00022739,3]
[385744089,1758001841377,-554.66,0.00022739,3]
[385744090,1758001841386,-460.92414144,0.00022739,3]
[385744091,1758001841395,-544.45613658,0.00022739,3]
[385744092,1758001841404,-336.38,0.00022739,3]
[385744093,1758001841413,-480.0,0.00022739,3]
[385744094,1758001841422,-969.47,0.00022739,3]
[385744095,1758001841431,-869.01,0.00022739,3]
[385744096,1758001841441,-480.0,0.00022739,3]
[385744097,1758001841450,-480.0,0.00022739,3]
[385744098,1758001841459,-742.64,0.00022739,3]
[385744099,1758001841468,-480.0,0.00022739,3]
[385744100,1758001841477,-4357.14,0.00022739,3]
[385744101,1758001841486,-480.0,0.00022739,3]
[385744102,1758001841496,-480.0,0.00022739,3]
[385744103,1758001841505,-480.0,0.00022739,3]
[385744104,1758001841514,-480.0,0.00022739,3]
[385744105,1758001841524,-480.0,0.00022739,3]
[385744106,1758001841533,-230.09351721,0.00022739,3]
[385744107,1758001841543,-1694.44,0.00022739,3]
[385744108,1758001841553,-480.0,0.00022739,3]
[385744109,1758001841562,-480.0,0.00022739,3]
[385744110,1758001841572,-480.0,0.00022739,3]
[385744111,1758001841586,-480.0,0.00022739,3]
[385744112,1758001841595,-785.88,0.00022739,3]
[385744113,1758001841605,-480.0,0.00022739,3]
[385744114,1758001841615,-480.0,0.00022739,3]
[385744115,1758001841625,-161.16784891,0.00022855,2]
[385744116,1758001841634,-271.3805685,0.00022991,2]
[385744117,1758001841643,-151.0,0.00022991,2]
[385744118,1758001841652,-500.0,0.00022991,2]
[385744119,1758001841662,-500.0,0.00022991,2]
[385744120,1758001841671,-847.61663983,0.00023,3]
[385744121,1758001841681,-480.0,0.00023013,3]
[385744122,1758001841690,-480.0,0.00023013,3]
[385744123,1758001841700,-969.47,0.00023013,3]
[385744124,1758001841709,-869.01,0.00023013,3]
[385744125,1758001841718,-480.0,0.00023013,3]
[385744126,1758001841728,-480.0,0.00023013,3]
[385744127,1758001841737,-742.64,0.00023013,3]
[385744128,1758001841747,-509.24,0.00023013,3]
[385744129,1758001841756,-4357.14,0.00023013,3]
[385744130,1758001841765,-480.0,0.00023013,3]
[385744131,1758001841775,-480.0,0.00023013,3]
[385744132,1758001841784,-480.0,0.00023013,3]
[385744133,1758001841793,-480.0,0.00023013,3]
[385744134,1758001841802,-480.0,0.00023013,3]
[385744135,1758001841811,-1694.44,0.00023013,3]
[385744136,1758001841821,-480.0,0.00023013,3]
[385744137,1758001841830,-480.0,0.00023013,3]
[385744138,1758001841839,-480.0,0.00023013,3]
[385744139,1758001841849,-480.0,0.00023013,3]
[385744140,1758001841858,-785.88,0.00023013,3]
[385744141,1758001841867,-480.0,0.00023013,3]
[385744142,1758001841877,-480.0,0.00023013,3]
[385744143,1758001841886,-1500.0,0.00023068,2]
[385744144,1758001841895,-1021.40567582,0.00023068,2]
[385744145,1758001841904,-1500.0,0.00023068,2]
[385744146,1758001841913,-2200.0,0.00023111,2]
[385744147,1758001841923,-260.0,0.00023175,2]
[385744148,1758001841932,-210.29970198,0.00023265,2]
[385744149,1758001841941,-466.81601237,0.00023265,2]
[385744150,1758001841950,-500.0,0.00023265,2]
[385744151,1758001841959,-1500.0,0.00023268,2]
[385744152,1758001841969,-1500.0,0.00023268,2]
[385744153,1758001841978,-500.0,0.00023268,2]
[385744154,1758001841987,-480.0,0.00023287,3]
[385744155,1758001841996,-969.47,0.00023287,3]
[385744156,1758001842006,-869.01,0.00023287,3]
[385744157,1758001842015,-338.13009797,0.00023287,3]
[385744158,1758001842024,-480.0,0.00023287,3]
[385744159,1758001842033,-742.64,0.00023287,3]
[385744160,1758001842042,-4357.14,0.00023287,3]
[385744161,1758001842051,-425.16,0.00023287,3]
[385744162,1758001842060,-480.0,0.00023287,3]
[385744163,1758001842069,-480.0,0.00023287,3]
[385744164,1758001842078,-480.0,0.00023287,3]
[385744165,1758001842087,-480.0,0.00023287,3]
[385744166,1758001842096,-1694.44,0.00023287,3]
[385744167,1758001842104,-480.0,0.00023287,3]
[385744168,1758001842114,-205.37212271,0.00023287,3]
[385744169,1758001842123,-480.0,0.00023287,3]
[385744170,1758001842132,-480.0,0.00023287,3]
[385744171,1758001842141,-785.88,0.00023287,3]
[385744172,1758001842150,-480.0,0.00023287,3]
[385744173,1758001842159,-480.0,0.00023287,3]
[385744175,1758001842168,-1379.04,0.00023287,2]
[385744177,1758001842177,-500.0,0.0002335,2]
[385744178,1758001842187,-500.0,0.0002335,2]
[385744179,1758001842196,-174.58159794,0.0002335,2]
[385744180,1758001842205,-500.0,0.0002335,2]
[385744181,1758001842214,-501.40540503,0.0002335,2]
[385744182,1758001842223,-500.0,0.0002335,2]
[385744184,1758001842232,-500.0,0.0002335,2]
[385744186,1758001842241,-500.0,0.0002335,2]
[385744188,1758001842250,-500.98431332,0.0002335,2]
[385744189,1758001842259,-500.0,0.0002335,2]
[385744190,1758001842268,-500.59864287,0.0002335,2]
[385744191,1758001842278,-501.98150874,0.0002335,2]
[385744192,1758001842287,-500.0,0.0002335,2]
[385744193,1758001842295,-500.0,0.0002335,2]
[385744194,1758001842304,-500.0,0.0002335,2]
[385744195,1758001842313,-168.0,0.00023456,2]
[385744196,1758001842323,-2206.16,0.000235,7]
[385744197,1758001842332,-20752.27,0.000235,7]
[385744198,1758001842341,-500.0,0.00023539,2]
[385744200,1758001842350,-480.0,0.00023561,3]
[385744201,1758001842359,-969.47,0.00023561,3]
[385744203,1758001842368,-869.01,0.00023561,3]
[385744204,1758001842377,-480.0,0.00023561,3]
[385744206,1758001842386,-742.64,0.00023561,3]
[385744207,1758001842395,-4357.14,0.00023561,3]
[385744209,1758001842404,-480.0,0.00023561,3]
[385744210,1758001842413,-480.0,0.00023561,3]
[385744212,1758001842422,-439.60138047,0.00023561,3]
[385744213,1758001842431,-480.0,0.00023561,3]
[385744214,1758001842441,-1694.44,0.00023561,3]
[385744215,1758001842451,-480.0,0.00023561,3]
[385744216,1758001842460,-480.0,0.00023561,3]
[385744217,1758001842469,-480.0,0.00023561,3]
[385744218,1758001842478,-785.88,0.00023561,3]
[385744219,1758001842486,-480.0,0.00023561,3]
[385744220,1758001842495,-480.0,0.00023561,3]
[385744221,1758001842505,-228.00000001,0.000236,2]
[385744222,1758001842514,-2000.0,0.00023616,2]
[385744223,1758001842523,-2000.0,0.00023616,2]
[385744224,1758001842532,-185.4,0.00023629,3]
[385744225,1758001842541,-360.0,0.00023723,2]
[385744226,1758001842551,-5000.0,0.00023735,2]
[385744227,1758001842560,-500.0,0.00023813,2]
[385744228,1758001842569,-2000.0,0.00023816,2]
[385744229,1758001842580,-2000.0,0.00023816,2]
[385744230,1758001842589,-480.0,0.00023835,3]
[385744231,1758001842599,-969.47,0.00023835,3]
[385744232,1758001842608,-869.01,0.00023835,3]